bitfinex/quotes_ETHUSD_20260202
["timestamp","ask_amount","ask_price","bid_price","bid_amount"]
[1770008647114,11.94125492,2238.8,2237.8,12.80578902]
[1770008647424,11.94015492,2239.6,2238.2,12.80578902]
[1770008647628,12.08063507,2240.0,2238.6,12.80578902]
[1770008647827,0.0011,2240.4,2239.0,12.80578902]
[1770008647828,12.08173507,2240.4,2239.0,12.80578902]
[1770008648032,12.08173507,2240.4,2239.1,0.938]
[1770008648228,12.08173507,2240.4,2239.4,12.80578902]
[1770008648429,12.08173507,2240.4,2239.5,1.2805789]
[1770008648629,12.08173507,2240.4,2239.1,0.938]
[1770008649561,12.08173507,2240.4,2239.4,12.80578902]
[1770008649562,0.0011,2240.4,2239.4,12.80578902]
[1770008649855,12.08173507,2240.6,2239.4,12.80578902]
[1770008650249,0.0011,2240.6,2239.5,0.2335703]
[1770008650553,0.0011,2240.6,2239.4,12.80578902]
[1770008650726,0.0011,2240.6,2239.5,1.2805789]
[1770008650924,0.0011,2240.6,2239.2,0.2335703]
[1770008651133,0.0011,2240.6,2239.2,7.52973626]
[1770008651378,0.0011,2241.5,2240.0,0.2335703]
[1770008651679,0.0011,2241.5,2240.4,0.2335703]
[1770008652081,0.0011,2241.5,2240.2,0.2335703]
[1770008652251,12.08063507,2242.2,2240.7,0.2335703]
[1770008652452,12.08063507,2242.2,2240.8,0.938]
[1770008652653,0.42164368,2242.6,2240.8,0.938]
[1770008652654,12.50227875,2242.6,2241.1,0.2335703]
[1770008653192,12.08173507,2242.6,2241.1,0.2335703]
[1770008654072,0.0011,2242.6,2241.5,0.2335703]
[1770008654374,0.0011,2242.6,2241.4,12.80578902]
[1770008654375,12.08063507,2243.1,2241.8,12.80578902]
[1770008654574,0.64824697,2244.6,2241.9,8.254744]
[1770008654774,12.08063507,2244.5,2242.3,7.51752492]
[1770008654941,12.08063507,2244.5,2242.2,12.90818902]
[1770008654942,12.08063507,2244.5,2242.4,0.937]
[1770008655145,12.08063507,2244.5,2242.5,0.2335703]
[1770008655344,12.08063507,2244.5,2242.4,0.937]
[1770008655573,0.41518077,2244.6,2242.4,0.937]
[1770008655574,12.08063507,2244.3,2242.4,0.937]
[1770008655770,12.08063507,2244.3,2242.5,0.2335703]
[1770008656069,12.08063507,2244.3,2242.4,0.937]
[1770008656275,12.08063507,2244.1,2241.5,14.0193]
[1770008656460,12.08063507,2243.9,2241.6,0.937]
[1770008656667,12.08063507,2243.5,2241.7,1.49563]
[1770008656882,13.38239858,2243.8,2241.6,8.20823873]
[1770008657047,0.0011,2242.4,2241.9,0.2335703]
[1770008657246,13.38239858,2243.8,2242.0,0.2335703]
[1770008657775,0.0011,2242.6,2241.7,0.2335703]
[1770008659778,12.08063507,2243.1,2241.7,0.2335703]
[1770008659948,0.0011,2243.5,2241.7,0.2335703]
[1770008660276,0.0011,2243.5,2241.9,0.2335703]
[1770008660484,12.08173507,2243.5,2241.7,0.2335703]
[1770008663486,13.01773507,2243.5,2241.6,0.937]
[1770008665520,12.08063507,2243.3,2241.6,0.937]
[1770008665804,12.08063507,2243.1,2241.6,0.937]
[1770008666998,12.08063507,2243.1,2241.7,0.2335703]
[1770008669691,12.08063507,2243.1,2241.8,0.001]
[1770008670268,0.0011,2243.3,2241.8,0.001]
[1770008670474,12.08173507,2243.3,2241.8,0.2345703]
[1770008670786,12.08063507,2243.2,2241.8,0.2345703]
[1770008670968,12.08063507,2243.2,2241.8,0.001]
[1770008671403,0.0011,2243.5,2242.1,7.52493273]
[1770008671603,12.08173507,2244.4,2242.5,7.52273273]
[1770008671766,12.08173507,2244.4,2242.9,0.2335703]
[1770008671975,12.08173507,2244.4,2242.9,1.53750623]
[1770008672418,0.0011,2245.3,2243.6,12.80578902]
[1770008672419,12.08063507,2245.2,2243.6,12.80578902]
[1770008672708,0.0011,2245.3,2244.1,0.2335703]
[1770008673071,0.0011,2245.3,2243.8,0.2335703]
[1770008673406,0.0011,2245.3,2243.8,0.86262702]
[1770008673606,0.0011,2245.3,2244.0,0.2335703]
[1770008674109,0.0011,2245.3,2243.8,0.3359703]
[1770008674267,0.0011,2245.3,2243.8,1.74374623]
[1770008674474,0.0011,2245.3,2243.8,1.64134623]
[1770008674699,12.08173507,2245.1,2243.7,0.936]
[1770008677705,12.08173507,2245.1,2242.0,9.39211274]
[1770008677911,12.08173507,2245.1,2242.4,14.0193]
[1770008677912,11.85175226,2244.9,2242.4,14.0193]
[1770008678203,0.1024,2244.3,2242.4,14.0193]
[1770008678377,11.85175226,2243.8,2242.2,0.936]
[1770008678699,11.85175226,2243.6,2242.2,0.936]
[1770008682590,11.85175226,2243.6,2242.4,0.001]
[1770008688487,11.85175226,2243.6,2242.1,0.001]
[1770008688813,11.85175226,2243.6,2241.3,0.188]
[1770008688814,11.9512101,2242.8,2241.3,0.001]
[1770008689110,11.9512101,2242.6,2241.3,0.001]
[1770008695291,11.9512101,2242.6,2241.5,0.001]
[1770008695685,1.19512101,2242.7,2241.3,0.001]
[1770008695686,11.9523101,2242.4,2241.3,0.001]
[1770008695886,11.9512101,2242.2,2240.7,0.001]
[1770008701030,11.9512101,2241.8,2240.7,0.001]
[1770008701196,11.9512101,2241.6,2240.4,0.001]
[1770008701397,11.9512101,2241.2,2240.4,0.001]
[1770008701926,11.9512101,2241.6,2240.4,0.001]
[1770008702930,11.9512101,2241.4,2240.4,0.001]
[1770008705139,11.9512101,2241.4,2239.7,0.187]
[1770008705427,11.9512101,2241.2,2238.8,0.1024]
[1770008705928,11.9512101,2240.8,2238.7,8.95051544]
[1770008706106,11.9512101,2240.6,2238.7,2.012]
[1770008706308,11.9512101,2240.6,2238.6,0.936]
[1770008706528,11.9512101,2240.6,2238.7,7.02348222]
[1770008706529,12.8872101,2240.6,2238.7,7.02348222]
[1770008706735,1.28872101,2240.5,2238.8,7.69976178]
[1770008706964,1.28872101,2240.5,2239.2,0.2335703]
[1770008707254,13.23993111,2240.5,2238.8,0.79594822]
[1770008707828,13.23993111,2240.5,2238.6,0.936]
[1770008708239,12.38262319,2240.3,2238.6,0.936]
[1770008708443,12.38262319,2240.1,2238.6,0.936]
[1770008708953,12.38262319,2240.1,2238.9,0.001]
[1770008709151,13.6713442,2240.5,2238.9,0.001]
[1770008709323,12.38262319,2240.3,2238.9,0.001]
[1770008712239,1.36713442,2240.4,2238.9,0.001]
[1770008712559,17.08662319,2241.2,2238.9,0.001]
[1770008712759,12.38262319,2240.8,2238.9,0.001]
[1770008712965,12.38262319,2240.8,2238.9,14.501]
[1770008713255,12.38262319,2240.8,2239.0,7.17022649]
[1770008713430,12.38262319,2240.8,2239.0,18.93047345]
[1770008713629,13.71458551,2240.7,2239.1,3.34314734]
[1770008714057,13.71458551,2240.7,2239.0,0.2335703]
[1770008714439,13.71458551,2240.7,2239.0,7.15493602]
[1770008714664,13.71458551,2240.7,2239.0,0.2335703]
[1770008715581,13.71458551,2240.7,2239.0,7.12509127]
[1770008715750,12.38262319,2240.7,2239.3,0.2335703]
[1770008716058,12.38262319,2240.7,2239.1,0.2335703]
[1770008716559,12.38262319,2240.7,2239.0,0.2335703]
[1770008717451,12.38262319,2240.7,2239.2,11.76024696]
[1770008717652,12.38262319,2241.1,2239.3,8.2718528]
[1770008717832,12.38262319,2241.5,2240.1,11.76024696]
[1770008718032,12.38262319,2241.5,2240.2,0.937]
[1770008718232,12.38262319,2242.1,2240.3,14.7335703]
[1770008718439,12.38262319,2242.1,2240.3,14.5]
[1770008718648,12.38262319,2242.1,2240.2,0.937]
[1770008718649,12.38262319,2241.9,2240.2,0.937]
[1770008719045,12.38262319,2241.7,2239.5,14.5]
[1770008719245,13.33843594,2241.6,2239.5,14.5]
[1770008719447,12.38262319,2241.4,2239.5,14.5]
[1770008719674,12.38262319,2241.2,2239.4,0.937]
[1770008719844,12.38262319,2241.0,2239.4,0.937]
[1770008720241,12.38262319,2241.0,2238.7,14.5]
[1770008720473,12.38262319,2241.0,2238.8,11.76024696]
[1770008720640,12.38262319,2241.0,2238.6,1.39140672]
[1770008720641,1.34411119,2241.1,2239.7,0.2335703]
[1770008720844,12.38262319,2241.8,2240.1,0.2335703]
[1770008721061,12.38262319,2241.8,2240.3,0.2335703]
[1770008721357,0.0011,2241.3,2240.3,0.2335703]
[1770008721562,0.0011,2241.3,2240.1,0.2335703]
[1770008722075,0.0011,2241.3,2240.2,14.5]
[1770008722278,0.0011,2241.3,2240.3,1.47335703]
[1770008722600,12.38262319,2242.2,2240.4,0.2335703]
[1770008722884,0.937,2242.3,2240.5,14.5]
[1770008722885,13.71458551,2242.0,2240.5,14.5]
[1770008723399,13.71458551,2242.0,2240.3,2.41035703]
[1770008723690,13.71458551,2242.0,2240.3,0.937]
[1770008723991,12.38262319,2241.9,2240.3,0.937]
[1770008724144,12.38262319,2241.8,2240.3,0.937]
[1770008726387,13.34030651,2241.7,2240.3,0.937]
[1770008726595,13.31962319,2241.6,2240.3,0.937]
[1770008726765,12.38262319,2241.4,2239.6,14.5]
[1770008726971,12.38262319,2241.4,2239.6,0.937]
[1770008727166,12.38262319,2241.2,2239.6,0.937]
[1770008729202,12.38262319,2241.2,2239.7,0.2335703]
[1770008729401,12.38262319,2241.2,2239.6,0.937]
[1770008729402,13.62088551,2241.2,2239.6,0.937]
[1770008730185,12.38262319,2241.1,2239.6,0.937]
[1770008730703,12.38262319,2240.9,2239.6,0.937]
[1770008731104,1.23826232,2241.2,2239.7,0.2335703]
[1770008731406,13.62088551,2241.2,2239.7,0.2335703]
[1770008731573,12.38262319,2241.0,2239.7,0.2335703]
[1770008733094,13.31962319,2241.0,2238.7,6.76441768]
[1770008733403,13.31962319,2241.0,2239.0,0.937]
[1770008733602,13.31962319,2241.0,2239.8,0.001]
[1770008736523,12.38262319,2240.8,2239.8,0.001]
[1770008736680,12.38262319,2240.6,2239.8,0.001]
[1770008738213,12.49096694,2241.0,2239.8,0.001]
[1770008738997,11.55396694,2240.8,2239.8,0.001]
[1770008739514,0.937,2241.0,2239.8,0.001]
[1770008739515,11.55396694,2240.6,2239.8,0.001]
[1770008739815,11.55396694,2240.6,2239.5,0.001]
[1770008739990,11.55396694,2240.4,2239.5,0.001]
[1770008740311,11.55396694,2240.2,2238.7,0.001]
[1770008740487,11.55396694,2240.0,2238.7,0.001]
[1770008744901,12.51417895,2239.9,2238.7,0.001]
[1770008745120,11.55396694,2239.5,2237.8,0.001]
[1770008746896,11.55396694,2239.3,2237.8,0.001]
[1770008747097,11.70246739,2239.1,2237.8,0.001]
[1770008747822,11.70246739,2239.1,2238.9,0.001]
[1770008747994,11.70246739,2239.1,2237.8,0.001]
[1770008748190,12.87271413,2239.1,2238.0,0.001]
[1770008748391,1.17024674,2239.1,2238.0,0.001]
[1770008748603,12.63946739,2239.5,2238.0,0.001]
[1770008752638,11.70246739,2239.5,2238.0,0.001]
[1770008753211,11.70246739,2239.5,2238.0,0.2345703]
[1770008753521,12.63946739,2239.8,2238.2,0.2335703]
[1770008753925,12.63946739,2239.8,2238.3,14.5]
[1770008754123,1.26394674,2239.7,2238.4,1.47335703]
[1770008755532,11.70246739,2239.6,2238.4,1.47335703]
[1770008755734,11.70246739,2239.3,2238.0,0.001]
[1770008756114,12.63946739,2239.2,2238.0,0.001]
[1770008756746,11.70246739,2239.1,2238.0,0.001]
[1770008757009,11.70246739,2238.7,2237.6,0.938]
[1770008757239,11.70246739,2238.5,2237.6,0.938]
[1770008757441,1.64154674,2238.6,2237.6,0.938]
[1770008757747,11.70246739,2238.9,2237.6,0.938]
[1770008760146,11.70246739,2238.9,2237.6,0.001]
[1770008760449,11.70246739,2238.9,2238.0,0.001]
[1770008760610,11.70246739,2238.9,2237.6,0.001]
[1770008760812,11.70246739,2238.7,2237.6,0.001]
[1770008761059,4.713,2238.8,2237.6,0.001]
[1770008761060,11.70246739,2238.5,2237.6,0.001]
[1770008761259,11.70246739,2238.3,2237.6,0.001]
[1770008761546,11.70246739,2238.3,2237.4,0.001]
[1770008761711,11.70246739,2238.3,2237.0,0.937]
[1770008763542,1.26394674,2238.4,2237.0,0.937]
[1770008763761,11.70246739,2238.7,2237.1,0.2335703]
[1770008763920,11.70246739,2238.7,2237.0,7.11109313]
[1770008764623,11.70246739,2238.7,2237.0,0.937]
[1770008765027,11.70246739,2239.2,2237.4,6.14056013]
[1770008765225,0.0011,2239.3,2237.9,6.37413043]
[1770008765566,0.0011,2239.3,2237.7,0.1024]
[1770008765567,0.0011,2239.3,2238.1,0.2335703]
[1770008765924,0.0011,2239.3,2238.1,6.34091368]
[1770008766123,11.70246739,2239.8,2238.1,6.34091368]
[1770008766340,11.70356739,2239.5,2238.0,0.937]
[1770008766528,12.87282413,2239.4,2238.0,0.937]
[1770008768647,11.50069838,2239.3,2238.0,0.937]
[1770008769053,12.46029861,2239.2,2238.0,0.937]
[1770008769368,11.50069838,2239.3,2237.3,6.21101268]
[1770008769527,1.17035674,2239.4,2237.8,5.94610843]
[1770008769722,11.50179838,2239.5,2238.0,0.2335703]
[1770008770548,0.0011,2239.5,2238.0,6.17967873]
[1770008770749,12.70545313,2240.3,2238.2,6.14883598]
[1770008770949,12.70545313,2240.3,2238.1,13.26813674]
[1770008770950,11.50069838,2240.3,2238.6,6.14773598]
[1770008771138,11.50069838,2240.3,2238.3,1.43149005]
[1770008771461,1.15017984,2240.2,2238.5,6.14773598]
[1770008771631,11.50179838,2240.4,2238.5,6.14773598]
[1770008772356,11.50179838,2240.4,2238.4,0.73456557]
[1770008772535,11.50179838,2240.4,2238.4,0.2335703]
[1770008772733,11.50069838,2240.2,2238.3,0.937]
[1770008773462,11.50069838,2240.2,2238.4,6.58131225]
[1770008773639,11.50069838,2240.2,2238.4,6.0868222]
[1770008774550,11.50069838,2240.2,2238.6,6.05470395]
[1770008774750,11.50069838,2240.2,2238.7,1.88283506]
[1770008774949,11.50069838,2240.2,2238.4,0.2335703]
[1770008775641,11.50069838,2240.2,2238.3,0.937]
[1770008776057,12.43769838,2240.2,2238.3,6.69936727]
[1770008776238,12.43769838,2240.2,2238.4,0.2335703]
[1770008778278,0.0011,2240.4,2238.8,5.93845199]
[1770008778572,0.0011,2240.4,2239.0,0.2335703]
[1770008778977,0.0011,2240.4,2239.0,18.68386842]
[1770008779181,11.50069838,2241.0,2239.2,5.67665143]
[1770008779466,11.50069838,2241.0,2239.5,0.2335703]
[1770008779641,11.50069838,2241.0,2239.3,0.937]
[1770008779842,11.50069838,2240.8,2239.3,0.937]
[1770008780480,4.713,2240.7,2239.3,0.937]
[1770008780638,11.50069838,2240.6,2239.3,0.937]
[1770008782291,11.50069838,2240.6,2238.2,5.64865484]
[1770008782292,11.50069838,2240.5,2238.2,5.64865484]
[1770008782587,11.50069838,2240.2,2238.3,0.56486548]
[1770008782784,11.50069838,2240.2,2238.2,0.2345703]
[1770008783167,11.50069838,2240.2,2238.2,0.001]
[1770008783556,11.50069838,2240.0,2238.0,0.001]
[1770008783758,7.21012047,2240.1,2237.2,14.0193]
[1770008783759,11.50069838,2238.8,2237.2,14.0193]
[1770008783959,11.50069838,2238.5,2236.8,0.937]
[1770008785489,11.50069838,2238.5,2235.8,14.0193]
[1770008785490,11.50069838,2238.1,2235.8,14.0193]
[1770008785660,11.50069838,2238.1,2236.1,0.937]
[1770008785661,12.43769838,2238.1,2236.1,0.937]
[1770008785869,11.50069838,2237.9,2236.1,0.937]
[1770008786767,11.50069838,2237.9,2237.3,0.001]
[1770008787168,11.50069838,2237.9,2237.0,0.001]
[1770008787796,11.50069838,2237.9,2236.2,0.001]
[1770008788706,12.43769838,2237.9,2236.2,0.001]
[1770008788869,11.50069838,2237.7,2236.2,0.001]
[1770008789283,1.36814682,2237.8,2236.2,0.001]
[1770008789284,11.50069838,2237.5,2236.2,0.001]
[1770008789485,11.50069838,2237.3,2234.9,2.10968806]
[1770008789710,11.50069838,2237.1,2234.9,2.10968806]
[1770008789915,11.50069838,2236.9,2235.0,0.50606881]
[1770008791384,11.50069838,2236.9,2234.8,0.937]
[1770008791816,1.24376984,2237.0,2234.8,0.937]
[1770008791817,11.50069838,2236.7,2234.8,0.937]
[1770008792311,11.50069838,2236.1,2233.6,5.34500072]
[1770008792522,2.89855175,2236.9,2233.8,5.34500072]
[1770008792523,11.50069838,2235.9,2233.8,5.34500072]
[1770008793423,11.50069838,2235.9,2233.9,0.2335703]
[1770008794106,11.50069838,2235.9,2234.1,5.53111218]
[1770008794417,11.50069838,2236.3,2234.3,5.63351218]
[1770008794725,2.18176984,2237.0,2234.8,0.2335703]
[1770008794726,11.50069838,2236.9,2234.8,0.2335703]
[1770008795016,2.18176984,2237.0,2234.8,0.2335703]
[1770008795017,11.50069838,2236.7,2234.8,1.22312323]
[1770008795209,11.50069838,2236.7,2234.5,5.50778414]
[1770008795385,11.50069838,2236.7,2234.5,0.2335703]
[1770008796414,11.50069838,2236.7,2234.5,0.3359703]
[1770008796714,11.50069838,2236.7,2234.5,5.48477062]
[1770008797013,11.50069838,2237.1,2235.3,0.2335703]
[1770008797195,11.50069838,2237.1,2235.4,0.938]
[1770008797613,11.50069838,2237.1,2234.1,2.23414957]
[1770008797614,11.48928338,2236.9,2233.8,19.20318286]
[1770008797910,11.48928338,2236.5,2233.9,6.12188286]
[1770008798110,11.48928338,2236.5,2234.0,5.41745316]
[1770008798315,11.48928338,2236.3,2234.1,0.63554532]
[1770008798513,12.42728338,2236.3,2234.1,0.63554532]
[1770008798711,12.42728338,2236.3,2233.9,0.938]
[1770008799030,11.48928338,2236.1,2233.9,0.938]
[1770008799313,11.48928338,2236.1,2234.7,0.001]
[1770008799527,11.48928338,2235.9,2234.7,0.001]
[1770008799894,11.48928338,2235.9,2234.5,0.001]
[1770008800194,11.48928338,2235.7,2233.4,0.17469722]
[1770008800408,11.48928338,2235.5,2233.6,0.001]
[1770008800603,11.48928338,2235.3,2233.6,0.001]
[1770008810993,11.48928338,2235.3,2233.6,4.90161235]
[1770008811193,11.48928338,2235.3,2233.6,16.89927434]
[1770008811418,1.02706108,2235.2,2233.7,1.68992743]
[1770008811817,11.48226031,2235.2,2233.7,1.68992743]
[1770008812019,11.48226031,2235.2,2233.6,0.001]
[1770008812505,11.48226031,2235.2,2233.8,0.001]
[1770008815427,12.42126031,2235.5,2233.8,4.82828466]
[1770008815627,12.42126031,2235.5,2233.8,0.001]
[1770008817036,11.48226031,2235.4,2233.8,0.001]
[1770008817215,11.48226031,2235.4,2232.9,0.1024]
[1770008817216,11.48226031,2235.0,2232.9,0.1024]
[1770008817416,11.48226031,2235.0,2233.1,0.001]
[1770008817417,11.48226031,2234.2,2233.1,0.001]
[1770008817761,11.48226031,2234.0,2232.5,0.001]
[1770008818049,11.48226031,2235.0,2233.0,4.77635412]
[1770008818203,13.58495043,2234.9,2233.1,1.68284023]
[1770008818518,13.58495043,2234.9,2232.5,0.001]
[1770008818519,11.48226031,2234.7,2233.0,0.001]
[1770008818830,11.48226031,2234.5,2232.7,0.001]
[1770008819009,11.48226031,2234.3,2232.5,0.001]
[1770008819210,12.22093198,2234.3,2232.5,0.001]
[1770008819611,11.48226031,2234.3,2232.5,0.001]
[1770008819807,12.72438634,2234.2,2232.5,0.58145589]
[1770008820208,11.48226031,2234.0,2232.5,0.001]
[1770008820409,12.43786355,2233.9,2232.5,0.001]
[1770008820610,0.73867167,2234.0,2232.5,0.001]
[1770008820918,12.72438634,2234.2,2232.5,0.2345703]
[1770008821524,12.72438634,2234.2,2232.5,0.001]
[1770008821729,11.48226031,2234.0,2232.5,0.001]
[1770008822430,11.48226031,2233.8,2232.5,0.001]
[1770008822631,1.27243863,2234.1,2232.5,0.001]
[1770008823009,1.27243863,2234.1,2232.5,0.2345703]
[1770008823417,1.27243863,2234.1,2232.5,4.92647185]
[1770008823618,11.48226031,2234.6,2232.7,0.2335703]
[1770008823806,1.14822603,2234.9,2233.0,4.90906662]
[1770008824229,1.14822603,2234.9,2233.2,0.2335703]
[1770008824431,0.939,2235.2,2233.2,0.2335703]
[1770008824432,11.48226031,2235.0,2233.4,0.2335703]
[1770008824740,11.48226031,2235.4,2233.5,4.65926558]
[1770008824942,11.48226031,2235.8,2233.9,16.94488407]
[1770008825311,0.23329574,2236.1,2234.2,0.2335703]
[1770008825508,11.48880714,2236.2,2234.2,0.2335703]
[1770008825706,12.63114102,2236.1,2234.4,0.2335703]
[1770008825908,1.14888071,2236.1,2234.5,0.94]
[1770008826139,0.00654683,2236.2,2234.5,5.58099568]
[1770008826532,0.0011,2236.1,2234.5,5.58099568]
[1770008826741,0.0011,2236.1,2234.6,0.2335703]
[1770008827257,0.0011,2236.1,2234.7,0.001]
[1770008828250,0.0011,2236.1,2234.7,14.501]
[1770008828450,0.0011,2236.1,2234.8,1.47345703]
[1770008828838,0.0011,2236.1,2234.9,0.001]
[1770008829033,0.0011,2236.1,2234.8,0.2335703]
[1770008829447,0.0011,2236.1,2234.9,0.001]
[1770008830069,0.00654683,2236.2,2235.0,4.79663921]
[1770008830230,0.0011,2236.5,2235.2,0.2335703]
[1770008830426,0.0011,2236.5,2235.2,12.28561849]
[1770008830630,0.0011,2236.7,2235.4,0.2335703]
[1770008830857,10.21565738,2237.6,2235.8,0.2335703]
[1770008831065,0.0011,2237.6,2236.2,12.05204819]
[1770008831356,0.0011,2237.6,2235.9,4.64058931]
[1770008831357,0.0011,2237.6,2236.3,1.43877512]
[1770008831528,10.21565738,2237.6,2236.4,0.94]
[1770008831726,10.21565738,2237.6,2236.4,14.5]
[1770008831931,10.21565738,2237.6,2236.5,0.001]
[1770008832345,0.0011,2237.6,2236.5,0.001]
[1770008832538,0.0011,2237.6,2236.5,0.2345703]
[1770008832742,10.21455738,2238.0,2236.5,1.47445703]
[1770008834468,10.21455738,2238.0,2236.6,0.2335703]
[1770008834838,10.21455738,2238.0,2236.7,0.001]
[1770008836068,10.21455738,2238.0,2235.3,14.0193]
[1770008836248,10.21455738,2237.6,2235.4,0.001]
[1770008836443,0.1024,2237.8,2235.4,1.49693]
[1770008836444,10.21455738,2237.4,2235.4,1.49693]
[1770008836637,1.71346074,2237.5,2235.4,1.49693]
[1770008836638,10.21455738,2237.2,2235.4,1.49693]
[1770008836839,10.21455738,2237.0,2235.4,0.001]
[1770008837141,10.21455738,2237.0,2234.2,4.45034176]
[1770008837142,10.21455738,2236.6,2234.6,0.939]
[1770008837343,10.21455738,2236.4,2234.7,0.001]
[1770008837886,10.21455738,2236.4,2234.7,0.002]
[1770008838568,10.21455738,2236.4,2234.7,14.502]
[1770008838770,10.21455738,2236.2,2234.8,1.5441]
[1770008839177,10.21455738,2236.2,2234.7,0.002]
[1770008839178,10.21455738,2236.2,2234.7,0.2355703]
[1770008839365,10.21455738,2236.2,2234.8,14.5]
[1770008839774,10.21455738,2236.2,2234.9,0.001]
[1770008840775,10.21455738,2236.1,2234.7,0.001]
[1770008841085,10.21455738,2236.1,2234.7,0.002]
[1770008841288,10.31695738,2235.9,2234.7,0.001]
[1770008841447,11.00896238,2235.9,2234.7,0.001]
[1770008841778,10.31695738,2235.9,2234.5,0.001]
[1770008841997,11.04785958,2235.9,2234.5,0.001]
[1770008842282,10.21455738,2235.7,2234.5,0.001]
[1770008842448,0.1024,2235.9,2234.5,0.002]
[1770008842449,10.21455738,2235.5,2234.5,0.002]
[1770008842656,10.21455738,2235.5,2234.5,0.001]
[1770008843061,10.21455738,2235.5,2234.6,0.001]
[1770008843560,10.21455738,2235.5,2234.5,0.001]
[1770008847059,10.21455738,2235.5,2234.6,0.001]
[1770008847261,1.13052136,2235.4,2234.1,0.001]
[1770008847772,2.37857936,2236.9,2234.1,0.001]
[1770008847773,10.21455738,2236.3,2234.1,4.54309058]
[1770008848079,10.21455738,2236.3,2234.2,0.001]
[1770008849355,10.21455738,2236.1,2234.2,0.001]
[1770008850757,10.21455738,2235.5,2234.2,0.001]
[1770008850959,10.21455738,2235.3,2234.2,0.001]
[1770008851995,10.21455738,2235.3,2234.4,0.001]
[1770008852166,10.90656238,2235.3,2234.4,0.001]
[1770008852363,10.21455738,2235.3,2234.4,0.001]
[1770008852870,10.21455738,2235.3,2234.1,0.001]
[1770008853073,10.21455738,2235.1,2234.2,0.001]
[1770008853470,10.90656238,2235.1,2233.6,0.001]
[1770008853688,10.21455738,2234.9,2233.6,0.001]
[1770008854071,10.21455738,2234.3,2232.7,0.001]
[1770008854274,10.21455738,2234.1,2232.7,0.001]
[1770008854487,10.21455738,2233.9,2232.7,0.001]
[1770008854660,10.21455738,2233.7,2232.7,0.001]
[1770008855266,10.21455738,2233.5,2232.4,0.1225112]
[1770008855479,11.15355738,2233.5,2232.4,0.1225112]
[1770008860000,10.45311172,2233.3,2231.5,0.939]
[1770008860172,10.45311172,2233.1,2231.4,0.09020693]
[1770008861165,11.14511672,2233.1,2231.4,0.09020693]
[1770008861571,10.45311172,2232.9,2231.4,0.09020693]
[1770008861872,10.45311172,2232.7,2231.4,0.09020693]
[1770008864497,10.45311172,2233.1,2231.4,0.09020693]
[1770008865395,10.45311172,2233.1,2231.5,0.2335703]
[1770008865702,1.11535574,2234.0,2231.5,4.46865326]
[1770008865703,10.45311172,2233.5,2231.5,4.46865326]
[1770008866106,10.45311172,2233.9,2231.7,4.45917892]
[1770008866308,1.11535574,2234.0,2231.9,4.45917892]
[1770008866506,10.45311172,2234.3,2232.2,4.22560862]
[1770008866706,10.45311172,2234.3,2232.3,0.94]
[1770008867219,0.94,2234.6,2232.3,0.94]
[1770008867220,0.0011,2233.3,2232.3,0.94]
[1770008867423,10.44227757,2233.9,2232.3,0.94]
[1770008867718,0.94,2234.6,2231.6,0.001]
[1770008867719,10.44337757,2233.5,2231.6,0.001]
[1770008867943,1.04433776,2233.4,2231.8,0.2335703]
[1770008868106,1.04433776,2233.4,2231.7,4.19686102]
[1770008868312,11.48661533,2233.4,2231.6,0.941]
[1770008869830,11.48661533,2233.4,2231.7,0.2335703]
[1770008870318,11.48661533,2233.4,2231.6,5.12006781]
[1770008870319,11.48661533,2233.4,2231.6,0.941]
[1770008870540,1.14877153,2233.3,2231.7,0.2335703]
[1770008870690,11.5910491,2233.3,2231.6,0.941]
[1770008871803,11.5910491,2233.3,2231.7,0.2335703]
[1770008873307,0.0011,2233.5,2231.7,4.38680774]
[1770008873632,10.44337757,2233.5,2231.7,4.37833493]
[1770008874911,10.44337757,2233.5,2231.7,0.2335703]
[1770008875323,10.44337757,2233.5,2231.6,0.941]
[1770008875538,10.44227757,2233.4,2231.6,0.941]
[1770008875744,0.00793658,2232.7,2231.6,0.941]
[1770008877254,10.44227757,2232.5,2231.4,0.09120693]
[1770008877405,10.44227757,2232.3,2231.4,0.09120693]
[1770008877604,11.48650533,2232.2,2231.4,0.09120693]
[1770008877932,11.48650533,2232.2,2230.1,4.20306814]
[1770008879433,11.48650533,2232.2,2230.2,0.94]
[1770008879628,11.48650533,2232.2,2230.2,5.1315491]
[1770008879933,11.48650533,2232.2,2230.3,4.41368857]
[1770008880129,11.48650533,2232.2,2230.5,4.41368857]
[1770008880338,10.44227757,2232.6,2230.5,4.41368857]
[1770008880828,10.44227757,2232.6,2230.7,0.2335703]
[1770008881029,10.44227757,2232.6,2230.8,4.40234671]
[1770008881331,10.44227757,2232.6,2230.8,4.16877641]
[1770008881533,10.44227757,2232.6,2230.5,14.0193]
[1770008881748,10.44227757,2232.4,2230.6,2.04915319]
[1770008881906,10.44227757,2232.4,2230.6,2.98915319]
[1770008882112,10.44227757,2232.2,2230.6,0.94]
[1770008882333,10.44227757,2232.1,2230.6,0.94]
[1770008882544,10.44227757,2232.0,2230.6,0.94]
[1770008882816,10.44227757,2232.0,2230.3,0.001]
[1770008882817,10.44227757,2231.5,2230.3,0.001]
[1770008883016,10.44227757,2232.0,2230.3,0.001]
[1770008883216,2.11967898,2232.3,2230.3,0.001]
[1770008883217,11.48650533,2231.9,2230.3,0.001]
[1770008883423,11.48203533,2231.9,2230.3,0.001]
[1770008883622,10.44227757,2231.7,2230.3,0.001]
[1770008887207,1.03975776,2231.9,2230.3,0.001]
[1770008887521,11.48203533,2231.9,2230.3,0.001]
[1770008887843,10.79064067,2231.7,2230.3,0.001]
[1770008888036,10.79064067,2231.6,2230.3,0.001]
[1770008888940,11.47702936,2231.6,2230.3,0.001]
[1770008889145,10.79064067,2231.6,2230.3,0.001]
[1770008891925,1.14820353,2231.8,2230.3,0.001]
[1770008891926,4.713,2231.4,2230.3,0.001]
[1770008892135,11.31602508,2231.3,2230.3,0.001]
[1770008892425,11.31602508,2231.3,2229.0,4.0431783]
[1770008892426,11.31602508,2231.3,2228.6,12.86585759]
[1770008892427,10.79064067,2230.6,2228.6,12.86585759]
[1770008892936,10.79064067,2230.4,2228.5,0.94]